bitfinex-derivatives/quotes_BNBF0:USTF0_20260110
["timestamp","ask_amount","ask_price","bid_price","bid_amount"]
[1768036637819,0.19267556,903.64,902.26,0.69135615]
[1768036638019,0.19267556,903.64,902.27,0.69135615]
[1768036638217,0.19267556,903.64,902.28,0.69135615]
[1768036638517,0.19267556,903.64,902.29,0.69135615]
[1768036638716,0.19267556,903.64,902.3,0.69135615]
[1768036638917,0.19267556,903.64,902.31,0.69135615]
[1768036639115,0.19267556,903.64,902.32,0.69135615]
[1768036639316,0.19267556,903.64,902.33,0.69135615]
[1768036639520,0.19267556,903.64,902.34,0.69135615]
[1768036639716,0.19267556,903.64,902.35,0.69135615]
[1768036639922,0.19267556,903.64,902.36,0.69135615]
[1768036640121,0.19267556,903.64,902.37,0.69135615]
[1768036640423,0.19267556,903.64,902.38,0.69135615]
[1768036640617,0.19267556,903.64,902.39,0.69135615]
[1768036640822,0.19267556,903.64,902.4,0.69135615]
[1768036641122,0.19267556,903.64,902.24,5.44548233]
[1768036641318,0.19267556,903.64,902.25,0.69115385]
[1768036641522,0.19267556,903.64,902.26,0.69115385]
[1768036641721,0.19267556,903.64,902.27,0.69115385]
[1768036641924,0.19267556,903.64,902.28,0.69115385]
[1768036642225,0.19267556,903.64,902.29,0.69115385]
[1768036642426,0.19267556,903.64,902.3,0.69115385]
[1768036642620,0.19267556,903.64,902.31,0.69115385]
[1768036642824,0.19267556,903.64,902.32,0.69115385]
[1768036643022,0.19267556,903.64,902.33,0.69115385]
[1768036643221,0.19267556,903.64,902.34,0.69115385]
[1768036643422,0.19267556,903.64,902.35,0.69115385]
[1768036643623,0.19267556,903.64,902.36,0.69115385]
[1768036643822,0.19267556,903.64,902.37,0.69115385]
[1768036644023,0.19267556,903.64,902.38,0.69115385]
[1768036644225,0.19267556,903.64,902.24,5.44548233]
[1768036644533,0.19267556,903.64,902.25,0.69100268]
[1768036644727,0.19267556,903.64,902.26,0.69100268]
[1768036644924,0.19267556,903.64,902.27,0.69100268]
[1768036645125,0.19267556,903.64,902.28,0.69100268]
[1768036645324,0.19267556,903.64,902.29,0.69100268]
[1768036645527,0.19267556,903.64,902.3,0.69100268]
[1768036645725,0.19267556,903.64,902.31,0.69100268]
[1768036645924,0.19267556,903.64,902.32,0.69100268]
[1768036646126,0.19267556,903.64,902.33,0.69100268]
[1768036646333,0.19267556,903.64,902.34,0.69100268]
[1768036646527,0.19267556,903.64,902.35,0.69100268]
[1768036646728,0.19267556,903.64,902.36,0.69100268]
[1768036647026,0.19267556,903.64,902.37,0.69100268]
[1768036647330,0.19267556,903.64,902.24,5.44548233]
[1768036647529,0.19267556,903.64,902.25,0.69095913]
[1768036647830,0.19267556,903.64,902.26,0.69095913]
[1768036648025,0.19267556,903.64,902.27,0.69095913]
[1768036648228,0.19267556,903.64,902.28,0.69095913]
[1768036648427,0.19267556,903.64,902.29,0.69095913]
[1768036648630,0.19267556,903.64,902.3,0.69095913]
[1768036648826,0.19267556,903.64,902.31,0.69095913]
[1768036649030,0.19267556,903.64,902.32,0.69095913]
[1768036649227,0.19267556,903.64,902.33,0.69095913]
[1768036649431,0.19267556,903.64,902.34,0.69095913]
[1768036649726,0.19267556,903.64,902.35,0.69095913]
[1768036649929,0.19267556,903.64,902.36,0.69095913]
[1768036650126,0.19267556,903.64,902.37,0.69095913]
[1768036650328,0.19267556,903.64,902.24,5.44548233]
[1768036650527,0.19267556,903.64,902.25,0.68935266]
[1768036650732,0.19267556,903.64,902.11,1.536]
[1768036652932,0.19267556,903.64,902.12,0.68941556]
[1768036653130,0.19267556,903.64,902.13,0.68941556]
[1768036653329,0.19267556,903.64,902.14,0.68941556]
[1768036653528,0.19267556,903.64,902.15,0.68941556]
[1768036653730,0.19267556,903.64,902.16,0.68941556]
[1768036653931,0.19267556,903.64,902.11,1.536]
[1768036654130,0.19267556,903.64,902.12,0.68936011]
[1768036654433,0.19267556,903.64,902.13,0.68936011]
[1768036654630,0.19267556,903.64,902.14,0.68936011]
[1768036654829,0.19267556,903.64,902.15,0.68936011]
[1768036655033,0.19267556,903.64,902.11,1.536]
[1768036655332,0.19267556,903.64,902.12,0.68930648]
[1768036655528,0.19267556,903.64,902.13,0.68930648]
[1768036655730,0.19267556,903.64,902.14,0.68930648]
[1768036655932,0.19267556,903.64,902.15,0.68930648]
[1768036656133,0.19267556,903.64,902.11,1.536]
[1768036656333,0.19267556,903.64,902.12,0.68925523]
[1768036656533,0.19267556,903.64,902.13,0.68925523]
[1768036656735,0.19267556,903.64,902.14,0.68925523]
[1768036656935,0.19267556,903.64,902.15,0.68925523]
[1768036657135,0.19267556,903.64,902.16,0.68919344]
[1768036657333,0.19267556,903.64,902.17,0.68919344]
[1768036657531,0.19267556,903.64,902.18,0.68919344]
[1768036657834,0.19267556,903.64,902.11,1.536]
[1768036658136,0.19267556,903.64,902.12,0.68915916]
[1768036658334,0.19267556,903.64,902.13,0.68915916]
[1768036658634,0.19267556,903.64,902.14,0.68915916]
[1768036658934,0.19267556,903.64,902.15,0.68915916]
[1768036659134,0.19267556,903.64,902.16,0.68915916]
[1768036659332,0.19267556,903.64,902.17,0.68915916]
[1768036659532,0.19267556,903.64,902.18,0.68915916]
[1768036659736,0.19267556,903.64,902.11,1.536]
[1768036659937,0.19267556,903.64,902.12,0.68911631]
[1768036660132,0.19267556,903.64,902.13,0.68911631]
[1768036660333,0.19267556,903.64,902.14,0.68911631]
[1768036660538,0.19267556,903.64,902.15,0.68911631]
[1768036660738,0.19267556,903.64,902.16,0.68911631]
[1768036661034,0.19267556,903.64,902.17,0.68911631]
[1768036661238,0.19267556,903.64,902.18,0.68911631]
[1768036661436,0.19267556,903.64,902.11,1.536]
[1768036661637,0.19267556,903.64,902.12,0.68907445]
[1768036661835,0.19267556,903.64,902.13,0.68907445]
[1768036662039,0.19267556,903.64,902.14,0.68907445]
[1768036662337,0.19267556,903.64,902.15,0.68907445]
[1768036662535,0.19267556,903.64,902.16,0.68907445]
[1768036662736,0.19267556,903.64,902.17,0.68907445]
[1768036662935,0.19267556,903.64,902.11,1.536]
[1768036663139,0.19267556,903.64,902.12,0.68905399]
[1768036663341,0.19267556,903.64,902.13,0.68905399]
[1768036663538,0.19267556,903.64,902.11,1.536]
[1768036663742,0.19267556,903.64,902.12,0.68903408]
[1768036663941,0.19267556,903.64,902.13,0.68903408]
[1768036664146,0.19267556,903.64,902.11,1.536]
[1768036664342,0.19267556,903.64,902.12,0.68902046]
[1768036664538,0.19267556,903.64,902.13,0.68902046]
[1768036664738,0.19267556,903.64,902.11,1.536]
[1768036665037,0.19267556,903.64,902.12,0.6890141]
[1768036665238,0.19267556,903.64,902.13,0.6890141]
[1768036665438,0.19267556,903.64,902.11,1.536]
[1768036665642,0.19267556,903.64,902.12,0.68900987]
[1768036665843,0.19267556,903.64,902.13,0.68900987]
[1768036666043,0.19267556,903.64,902.11,1.536]
[1768036666242,0.19267556,903.64,902.12,0.68900987]
[1768036666542,0.19267556,903.64,902.13,0.68900987]
[1768036666747,0.19267556,903.64,902.02,5.11182275]
[1768036666948,0.19267556,903.64,902.03,0.68899106]
[1768036667142,0.19267556,903.64,902.04,0.68899106]
[1768036667340,0.19267556,903.64,902.05,0.68899106]
[1768036667548,0.19267556,903.64,902.06,0.68899106]
[1768036667844,0.19267556,903.64,902.07,0.68899106]
[1768036668040,0.19267556,903.64,902.08,0.68899106]
[1768036668239,0.19267556,903.64,902.09,0.68899106]
[1768036668440,0.19267556,903.64,902.1,0.68899106]
[1768036668641,0.19267556,903.64,902.11,0.68899106]
[1768036668851,0.19267556,903.64,902.12,0.68899106]
[1768036669041,0.19267556,903.64,902.13,0.68899106]
[1768036669239,0.19267556,903.64,902.13,1.682]
[1768036672841,0.19267556,903.64,902.14,0.6888774]
[1768036673048,0.19267556,903.64,902.13,1.682]
[1768036673244,0.19267556,903.64,902.14,0.6888774]
[1768036673447,0.19267556,903.64,902.13,1.682]
[1768036673753,0.19267556,903.64,902.14,0.68887505]
[1768036674053,0.19267556,903.64,902.13,1.682]
[1768036674244,0.19267556,903.64,902.14,0.68887505]
[1768036674448,0.19267556,903.64,902.13,1.682]
[1768036674751,0.19267556,903.64,902.14,0.68887742]
[1768036675042,0.19267556,903.64,902.13,1.682]
[1768036675241,0.19267556,903.64,902.14,0.68887735]
[1768036675444,0.19267556,903.64,902.13,1.682]
[1768036675644,0.19267556,903.64,902.14,0.6888854]
[1768036675841,0.19267556,903.64,902.13,1.682]
[1768036676044,0.19267556,903.64,902.14,0.6888854]
[1768036676246,0.19267556,903.64,902.13,1.682]
[1768036676444,0.19267556,903.64,902.14,0.68889866]
[1768036676745,0.19267556,903.64,902.13,1.682]
[1768036676944,0.19267556,903.64,902.14,0.68889866]
[1768036677146,0.19267556,903.64,902.13,1.682]
[1768036677345,0.19267556,903.64,902.14,0.68889866]
[1768036677545,0.19267556,903.64,902.13,1.682]
[1768036677746,0.19267556,903.64,902.14,0.6889298]
[1768036677944,0.19267556,903.64,902.13,1.682]
[1768036678143,0.19267556,903.64,902.14,0.6889298]
[1768036678348,0.19267556,903.64,902.13,1.682]
[1768036678547,0.19267556,903.64,902.14,0.68988637]
[1768036678748,0.19267556,903.64,902.13,1.682]
[1768036678946,0.19267556,903.64,902.14,0.68988637]
[1768036679149,0.19267556,903.64,902.13,1.682]
[1768036679353,0.19267556,903.64,902.14,0.68988637]
[1768036679646,0.19267556,903.64,902.15,0.68988637]
[1768036679855,0.19267556,903.64,902.13,1.682]
[1768036680056,0.19267556,903.64,902.14,0.68993092]
[1768036680246,0.19267556,903.64,902.15,0.68993092]
[1768036680552,0.19267556,903.64,902.16,0.68995796]
[1768036680746,0.19267556,903.64,902.17,0.68991633]
[1768036680948,0.19267556,903.64,902.18,0.68991633]
[1768036681152,0.19267556,903.64,902.19,0.68991633]
[1768036681451,0.19267556,903.64,902.13,1.682]
[1768036681452,0.19267556,903.64,902.2,0.68991633]
[1768036681653,0.19267556,903.64,902.21,0.68991633]
[1768036681850,0.19267556,903.64,902.22,0.68991633]
[1768036682052,0.19267556,903.64,902.23,0.68991633]
[1768036682256,0.19267556,903.64,902.13,1.682]
[1768036682455,0.19267556,903.64,902.14,0.69006394]
[1768036682757,0.19267556,903.64,902.15,0.69006394]
[1768036682951,0.19267556,903.64,902.16,0.69006394]
[1768036683156,0.19267556,903.64,902.13,1.682]
[1768036683157,0.19267556,903.64,902.17,0.69006394]
[1768036683357,0.19267556,903.64,902.18,0.69006394]
[1768036683557,0.19267556,903.64,902.19,0.69006394]
[1768036683852,0.19267556,903.64,902.2,0.69006394]
[1768036684055,0.19267556,903.64,902.21,0.69006394]
[1768036684259,0.19267556,903.64,902.22,0.69006394]
[1768036684455,0.19267556,903.64,902.23,0.69006394]
[1768036684755,0.19267556,903.64,902.13,1.682]
[1768036684958,0.19267556,903.64,902.14,0.69023529]
[1768036685157,0.19267556,903.64,902.15,0.69023529]
[1768036685357,0.19267556,903.64,902.16,0.69023529]
[1768036685560,0.19267556,903.64,902.17,0.69023529]
[1768036685760,0.19267556,903.64,902.18,0.69023529]
[1768036685958,0.19267556,903.64,902.19,0.69023529]
[1768036686261,0.19267556,903.64,902.2,0.69023529]
[1768036686467,0.19267556,903.64,902.21,0.69023529]
[1768036686658,0.19267556,903.64,902.13,1.682]
[1768036686659,0.19267556,903.64,902.22,0.69023529]
[1768036686858,0.19267556,903.64,902.23,0.69023529]
[1768036687063,0.19267556,903.64,902.24,0.69023529]
[1768036687264,0.19267556,903.64,902.25,0.69023529]
[1768036687463,0.19267556,903.64,902.26,0.69023529]
[1768036687664,0.19267556,903.64,902.13,1.682]
[1768036687860,0.19267556,903.64,902.14,0.69053587]
[1768036688164,0.19267556,903.64,902.13,1.682]
[1768036688165,0.19267556,903.64,902.15,0.69053587]
[1768036688364,0.19267556,903.64,902.16,0.69053587]
[1768036688566,0.19267556,903.64,902.17,0.69053587]
[1768036688762,0.19267556,903.64,902.18,0.69053587]
[1768036689063,0.19267556,903.64,902.19,0.69053587]
[1768036689266,0.19267556,903.64,902.2,0.69053587]
[1768036689469,0.19267556,903.64,902.21,0.69053587]
[1768036689664,0.19267556,903.64,902.22,0.69053587]
[1768036689868,0.19267556,903.64,902.23,0.69053587]
[1768036690066,0.19267556,903.64,902.24,0.69053587]
[1768036690371,0.19267556,903.64,902.25,0.69053587]
[1768036690667,0.19267556,903.64,902.26,0.69053587]
[1768036690866,0.19267556,903.64,902.27,0.69053587]
[1768036691073,0.19267556,903.64,902.28,0.69053587]
[1768036691266,0.19267556,903.64,902.29,0.69053587]
[1768036691470,0.19267556,903.64,902.3,0.69053587]
[1768036691669,0.19267556,903.64,902.31,0.69053587]
[1768036691872,0.19267556,903.64,902.32,0.69053587]
[1768036692077,0.19267556,903.64,902.33,0.69053587]
[1768036692376,0.19267556,903.64,902.34,0.69053587]
[1768036692575,0.19267556,903.64,902.35,0.69053587]
[1768036692771,0.19267556,903.64,902.13,1.682]
[1768036692974,0.19267556,903.64,902.14,0.69109207]
[1768036693173,0.19267556,903.64,902.15,0.69109207]
[1768036693377,0.19267556,903.64,902.16,0.69109207]
[1768036693577,0.19267556,903.64,902.17,0.69109207]
[1768036693776,0.19267556,903.64,902.18,0.69109207]
[1768036693976,0.19267556,903.64,902.19,0.69109207]
[1768036694177,0.19267556,903.64,902.2,0.69109207]
[1768036694376,0.19267556,903.64,902.21,0.69109207]
[1768036694581,0.19267556,903.64,902.22,0.69109207]
[1768036694775,0.19267556,903.64,902.23,0.69109207]
[1768036694979,0.19267556,903.64,902.24,0.69109207]
[1768036695177,0.19267556,903.64,902.25,0.69109207]
[1768036695480,0.19267556,903.64,902.26,0.69156223]
[1768036695678,0.19267556,903.64,902.13,1.682]
[1768036695882,0.19267556,903.64,902.14,0.69156223]
[1768036696082,0.19267556,903.64,902.15,0.69156223]
[1768036696279,0.19267556,903.64,902.16,0.69156223]
[1768036696479,0.19267556,903.64,902.17,0.69156223]
[1768036696680,0.19267556,903.64,902.18,0.69156223]
[1768036696880,0.19267556,903.64,902.19,0.69156223]
[1768036697080,0.19267556,903.64,902.2,0.69156223]
[1768036697280,0.19267556,903.64,902.21,0.69156223]
[1768036697480,0.19267556,903.64,902.22,0.69156223]
[1768036697780,0.19267556,903.64,902.23,0.69156223]
[1768036697981,0.19267556,903.64,902.24,0.69156223]
[1768036698179,0.19267556,903.64,902.13,1.682]
[1768036698180,0.19267556,903.64,902.25,0.69156223]
[1768036698380,0.19267556,903.64,902.13,1.682]
[1768036698381,0.19267556,903.64,902.26,0.69156223]
[1768036698684,0.19267556,903.64,902.13,1.682]
[1768036698883,0.19267556,903.64,902.14,0.69149217]
[1768036699082,0.19267556,903.64,902.15,0.69149217]
[1768036699281,0.19267556,903.64,902.16,0.69149217]
[1768036699480,0.19267556,903.64,902.17,0.69149217]
[1768036699686,0.19267556,903.64,902.18,0.69149217]
[1768036699884,0.19267556,903.64,902.19,0.69149217]
[1768036700184,0.19267556,903.64,902.2,0.69149217]
[1768036700482,0.19267556,903.64,902.21,0.69149217]
[1768036700681,0.19267556,903.64,902.22,0.69149217]
[1768036700987,0.19267556,903.64,902.23,0.69149217]
[1768036701186,0.19267556,903.64,902.24,0.69149217]
[1768036701383,0.19267556,903.64,902.25,0.69149217]
[1768036701581,0.19267556,903.64,902.26,0.69149217]
[1768036701787,0.19267556,903.64,902.13,1.682]
[1768036701987,0.19267556,903.64,902.14,0.69148201]
[1768036702186,0.19267556,903.64,902.15,0.69148201]
[1768036702383,0.19267556,903.64,902.16,0.69148201]
[1768036702585,0.19267556,903.64,902.17,0.69148201]
[1768036702790,0.19267556,903.64,902.18,0.69148201]
[1768036703085,0.19267556,903.64,902.19,0.69148201]
[1768036703386,0.19267556,903.64,902.2,0.69148201]
[1768036703591,0.19267556,903.64,902.21,0.69148201]
[1768036703788,0.19267556,903.64,902.22,0.69148201]
[1768036704090,0.19267556,903.64,902.23,0.69148201]
[1768036704287,0.19267556,903.64,902.24,0.69148201]
[1768036704591,0.19267556,903.64,902.25,0.69148201]
[1768036704787,0.19267556,903.64,902.26,0.69148201]
[1768036705091,0.19267556,903.64,902.27,0.69148201]
[1768036705291,0.19267556,903.64,902.28,0.69148201]
[1768036705491,0.19267556,903.64,902.29,0.69148201]
[1768036705689,0.19267556,903.64,902.3,0.69148201]
[1768036705890,0.19267556,903.64,902.31,0.69148201]
[1768036706091,0.19267556,903.64,902.32,0.69148201]
[1768036706288,0.19267556,903.64,902.33,0.69148201]
[1768036706488,0.19267556,903.64,902.34,0.69148201]
[1768036706793,0.19267556,903.64,902.35,0.69148201]
[1768036706988,0.19267556,903.64,902.36,0.69148201]
[1768036707194,0.19267556,903.64,902.03,0.82958881]
[1768036707394,0.19267556,903.64,902.37,1.485]
[1768036723108,2.94216626,903.64,902.37,1.485]
[1768036724811,0.19267556,903.64,902.37,1.485]
[1768036733114,2.94216626,903.64,902.37,1.485]
[1768036737726,2.7494907,903.63,902.37,1.485]
[1768036738826,2.94216626,903.64,902.37,1.485]
[1768036741329,2.7494907,903.63,902.37,1.485]
[1768036743033,2.7494907,903.5,902.37,1.485]
[1768036743533,2.7494907,903.49,902.02,5.11182275]
[1768036744732,2.7494907,903.5,902.02,5.11182275]
[1768036746732,2.7494907,903.49,902.03,2.085]
[1768036747737,2.7494907,903.48,902.03,2.085]
[1768036748934,2.7494907,903.47,902.03,2.085]
[1768036749436,2.7494907,903.45,902.03,2.085]
[1768036750234,2.7494907,903.44,902.03,2.085]
[1768036751338,2.7494907,903.42,902.03,2.085]
[1768036752439,2.7494907,903.39,902.03,2.085]
[1768036753037,2.7494907,903.62,902.04,0.69289868]
[1768036753236,2.7494907,903.62,902.05,0.69289868]
[1768036753440,2.7494907,903.62,902.06,0.69289868]
[1768036753737,2.7494907,903.62,902.07,0.69289868]
[1768036753937,2.7494907,903.62,902.08,0.69289868]
[1768036754137,2.7494907,903.62,902.09,0.69289868]
[1768036754341,2.7494907,903.62,902.1,0.69289868]
[1768036754539,2.7494907,903.62,902.11,0.69289868]
[1768036754742,2.7494907,903.62,902.12,0.69289868]
[1768036754942,2.7494907,903.62,902.13,0.69289868]
[1768036755241,2.7494907,903.62,902.14,0.69289868]
[1768036755442,2.7494907,903.62,902.03,2.085]
[1768036755641,2.7494907,903.62,902.04,0.6928675]
[1768036755844,2.7494907,903.62,902.05,0.6928675]
[1768036756039,2.7494907,903.62,902.06,0.6928675]
[1768036756244,2.7494907,903.62,902.07,0.6928675]
[1768036756441,2.7494907,903.62,902.08,0.6928675]
[1768036756646,2.7494907,903.62,902.09,0.6928675]
[1768036756846,2.7494907,903.62,902.1,0.6928675]
[1768036757042,2.7494907,903.62,902.11,0.6928675]
[1768036757347,2.7494907,903.62,902.12,0.6928675]
[1768036757543,2.7494907,903.62,902.13,0.6928675]
[1768036757745,0.19267556,903.64,902.14,0.6928675]
[1768036757952,0.19267556,903.64,902.15,0.6928675]
[1768036758146,0.19267556,903.64,902.16,0.6928675]
[1768036758347,0.19267556,903.64,902.17,0.6928675]
[1768036758542,0.19267556,903.64,902.18,0.6928675]
[1768036758745,0.19267556,903.64,902.19,0.6928675]
[1768036758945,0.19267556,903.64,902.2,0.6928675]
[1768036759146,0.19267556,903.64,902.21,0.6928675]
[1768036759344,0.19267556,903.64,902.22,0.6928675]
[1768036759554,0.19267556,903.64,902.23,0.6928675]
[1768036759743,0.19267556,903.64,902.24,0.6928675]
[1768036759948,0.19267556,903.64,902.03,2.085]
[1768036760148,0.19267556,903.64,902.04,0.69250112]
[1768036760345,0.19267556,903.64,902.05,0.69250112]
[1768036760544,0.19267556,903.64,902.06,0.69250112]
[1768036760848,0.19267556,903.64,902.07,0.69250112]
[1768036761145,0.19267556,903.64,902.08,0.69250112]
[1768036761348,0.19267556,903.64,902.09,0.69250112]
[1768036761550,0.19267556,903.64,902.1,0.69250112]
[1768036761846,0.19267556,903.64,902.11,0.69250112]
[1768036762046,0.19267556,903.64,902.12,0.69250112]
[1768036762245,0.19267556,903.64,902.13,0.69250112]
[1768036762445,0.19267556,903.64,902.14,0.69250112]
[1768036762651,0.19267556,903.64,902.15,0.69250112]
[1768036762848,0.19267556,903.64,902.16,0.69250112]
[1768036763048,0.19267556,903.64,902.03,2.085]
[1768036763049,0.19267556,903.64,902.17,0.69250112]
[1768036763249,0.19267556,903.64,902.18,0.69250112]
[1768036763549,0.19267556,903.64,902.19,0.69250112]
[1768036763749,0.19267556,903.64,902.2,0.69250112]
[1768036763948,0.19267556,903.64,902.21,0.69250112]
[1768036764149,0.19267556,903.64,902.03,2.085]
[1768036764352,0.19267556,903.64,902.04,0.6919331]
[1768036764648,0.19267556,903.64,902.03,2.085]
[1768036764649,0.19267556,903.64,902.05,0.6919331]
[1768036764852,0.19267556,903.64,902.06,0.6919331]
[1768036765054,0.19267556,903.64,902.03,2.085]
[1768036765453,2.7494907,903.53,902.03,2.085]
[1768036766151,2.7494907,903.59,902.03,2.085]
[1768036766455,2.7494907,903.58,902.03,2.085]
[1768036772361,2.7494907,903.58,902.04,0.69182453]
[1768036772561,2.7494907,903.58,902.03,2.085]
[1768036772562,2.7494907,903.58,902.05,0.69182453]
[1768036772869,2.94216626,903.64,902.03,2.085]
[1768036773069,2.94216626,903.64,902.04,0.69182453]
[1768036773369,0.19267556,903.64,902.05,0.69182453]
[1768036773661,0.19267556,903.64,902.06,0.69182453]
[1768036773856,0.19267556,903.64,902.07,0.69182453]
[1768036774058,0.19267556,903.64,902.08,0.69182453]
[1768036774262,0.19267556,903.64,902.03,2.085]
[1768036774568,0.19267556,903.64,902.04,0.69183516]
[1768036774762,0.19267556,903.64,902.05,0.69183516]
[1768036774962,0.19267556,903.64,902.06,0.69183516]
[1768036775160,0.19267556,903.64,902.07,0.69183516]
[1768036775460,0.19267556,903.64,902.08,0.69183516]
[1768036775659,0.19267556,903.64,902.09,0.69183516]
[1768036775859,0.19267556,903.64,902.1,0.69183516]
[1768036776060,0.19267556,903.64,902.11,0.69183516]
[1768036776258,0.19267556,903.64,902.12,0.69183516]
[1768036776564,0.19267556,903.64,902.13,0.69183516]
[1768036776862,0.19267556,903.64,902.14,0.69183516]
[1768036777059,0.19267556,903.64,902.15,0.69183516]
[1768036777363,0.19267556,903.64,902.03,6.32515557]
[1768036777663,0.19267556,903.64,902.04,0.69179263]
[1768036777960,0.19267556,903.64,902.05,0.69179263]
[1768036778164,0.19267556,903.64,902.06,0.69179263]
[1768036778463,0.19267556,903.64,902.07,0.69179263]
[1768036778663,0.19267556,903.64,902.08,0.69179263]
[1768036778864,0.19267556,903.64,902.09,0.69179263]
[1768036779065,0.19267556,903.64,902.1,0.69179263]
[1768036779365,0.19267556,903.64,902.11,0.69179263]
[1768036779664,0.19267556,903.64,902.12,0.69179263]
[1768036779864,0.19267556,903.64,902.13,0.69179263]
[1768036780061,0.19267556,903.64,902.14,0.69179263]
[1768036780266,0.19267556,903.64,902.03,4.24015557]
[1768036780466,0.19267556,903.64,902.04,0.6917851]
[1768036780665,0.19267556,903.64,902.05,0.6917851]
[1768036780864,0.19267556,903.64,902.06,0.6917851]
[1768036781068,0.19267556,903.64,902.07,0.6917851]
[1768036781268,0.19267556,903.64,902.08,0.6917851]
[1768036781469,0.19267556,903.64,902.09,0.6917851]
[1768036781665,0.19267556,903.64,902.1,0.6917851]
[1768036781868,0.19267556,903.64,902.11,0.6917851]
[1768036782163,0.19267556,903.64,902.12,0.6917851]
[1768036782365,0.19267556,903.64,902.13,0.6917851]
[1768036782569,0.19267556,903.64,902.14,0.6917851]
[1768036782866,0.19267556,903.64,902.08,1.846]
[1768036783067,2.7494907,903.63,902.08,1.846]
[1768036785172,2.7494907,903.62,902.08,1.846]
[1768036792977,0.19267556,903.64,902.08,1.846]
[1768036801485,0.19267556,903.64,902.09,0.6918162]
[1768036801685,0.19267556,903.64,902.1,0.6918162]
[1768036801890,0.19267556,903.64,902.11,0.6918162]
[1768036802085,0.19267556,903.64,902.12,0.6918162]
[1768036802290,0.19267556,903.64,902.13,0.6918162]
[1768036802489,0.19267556,903.64,902.14,0.6918162]
[1768036802688,0.19267556,903.64,902.15,0.6918162]
[1768036802988,0.19267556,903.64,902.16,0.6918162]
[1768036803290,0.19267556,903.64,902.17,0.6918162]
[1768036803488,0.19267556,903.64,902.18,0.6918162]
[1768036803792,0.19267556,903.64,902.19,0.6918162]
[1768036803990,0.19267556,903.64,902.2,0.6918162]
[1768036804185,0.19267556,903.64,902.21,0.6918162]
[1768036804488,0.19267556,903.64,902.22,0.6918162]
[1768036804691,0.19267556,903.64,902.23,0.6918162]
[1768036804888,0.19267556,903.64,902.24,0.6918162]
[1768036805091,0.19267556,903.64,902.25,0.6918162]
[1768036805288,0.19267556,903.64,902.26,0.6918162]
[1768036805489,0.19267556,903.64,902.08,1.846]
[1768036805790,0.19267556,903.64,902.09,0.69127616]
[1768036805988,0.19267556,903.64,902.1,0.69127616]
[1768036806192,0.19267556,903.64,902.11,0.69127616]
[1768036806488,0.19267556,903.64,902.12,0.69127616]
[1768036806689,0.19267556,903.64,902.13,0.69127616]
[1768036806892,0.19267556,903.64,902.08,1.846]
[1768036809994,2.94216626,903.64,902.08,1.846]
[1768036815798,2.7494907,903.63,902.08,1.846]
[1768036820401,2.94216626,903.64,902.08,1.846]
[1768036820898,0.19267556,903.64,902.08,1.846]
[1768036828808,2.7494907,903.51,902.08,1.846]
[1768036829408,2.7494907,903.52,902.08,1.846]
[1768036830309,0.19277696,903.17,902.08,1.846]
[1768036839516,0.19277696,903.17,902.03,4.24015557]
[1768036843124,0.19277696,903.17,902.04,0.69210816]
[1768036843419,0.19277696,903.17,902.05,0.69210816]
[1768036843621,0.19277696,903.17,902.06,0.69210816]
[1768036843820,0.19277696,903.17,902.07,0.69210816]
[1768036844019,0.19277696,903.17,902.05,2.216]
[1768036844221,0.19277696,903.17,902.06,0.69211274]
[1768036844420,0.19277696,903.17,902.07,0.69211274]
[1768036844629,0.19277696,903.17,902.08,0.69211274]
[1768036844818,0.19277696,903.17,902.09,0.69211274]
[1768036845023,0.19277696,903.17,902.05,2.216]
[1768036845225,0.19277696,903.17,902.06,0.69210247]
[1768036845524,0.19277696,903.17,902.07,0.69210247]
[1768036845722,0.19277696,903.17,902.08,0.69210247]
[1768036845921,0.19277696,903.17,902.09,0.69210247]
[1768036846122,0.19277696,903.17,902.05,2.216]
[1768036846326,0.19277696,903.17,902.06,0.69214902]
[1768036846620,0.19277696,903.17,902.07,0.69214902]
[1768036846821,0.19277696,903.17,902.08,0.69214902]
[1768036847023,0.19277696,903.17,902.09,0.69214902]
[1768036847226,0.19277696,903.17,902.1,0.69215306]
[1768036847425,0.19277696,903.17,902.05,2.216]
[1768036847622,0.19277696,903.17,902.06,0.69215306]
[1768036847824,0.19277696,903.17,902.07,0.69215306]
[1768036848027,0.19277696,903.17,902.08,0.69215306]
[1768036848225,0.19277696,903.17,902.09,0.69215306]
[1768036848425,0.19277696,903.17,902.05,2.216]
[1768036848426,0.19277696,903.17,902.1,0.69215306]
[1768036848630,0.19277696,903.17,902.05,2.216]
[1768036848826,0.19277696,903.17,902.06,0.69232099]
[1768036849031,0.19277696,903.17,902.07,0.69232099]
[1768036849327,0.19277696,903.17,902.08,0.69232099]
[1768036849537,0.19277696,903.17,902.09,0.69232099]
[1768036849729,0.19277696,903.17,902.1,0.69232099]
[1768036849929,0.19277696,903.17,902.11,0.69232099]
[1768036850234,0.19277696,903.17,902.12,0.69232099]
[1768036850435,0.19277696,903.17,902.13,0.69232099]